lending/lending_fUSD_20240824
["ID","MTS","AMOUNT","RATE_DAILY","PERIOD"]
[335728937,1724466643645,-2694.80145435,0.000108,2]
[335728939,1724466643657,-297.59077079,0.000108,2]
[335728942,1724466643669,-34028.45845047,0.000108,2]
[335728944,1724466643682,-27020.25076693,0.000108,2]
[335728946,1724466643696,-21134.19,0.000108,2]
[335728952,1724466643738,-22027.91794122,0.000108,2]
[335728954,1724466643748,-500.0,0.000108,2]
[335728956,1724466643758,-7500.0,0.000108,2]
[335728958,1724466643768,-156.23270332,0.000108,2]
[335728960,1724466643778,-150.0,0.000108,2]
[335728962,1724466643789,-150.0,0.000108,2]
[335728964,1724466643800,-12360.79334714,0.000108,2]
[335728966,1724466643812,-150.0,0.00010803,2]
[335728968,1724466643823,-177.10531115,0.00010804,2]
[335728970,1724466643833,-150.0,0.00010806,2]
[335728972,1724466643842,-150.0,0.00010806,2]
[335728975,1724466643852,-150.0,0.00010808,2]
[335728977,1724466643862,-150.0,0.00010809,2]
[335728979,1724466643872,-150.0,0.0001081,2]
[335728981,1724466643883,-273.254581,0.00010813,2]
[335728983,1724466643894,-150.0,0.00010813,2]
[335728985,1724466643904,-150.0,0.00010817,2]
[335728987,1724466643914,-150.0,0.00010819,2]
[335728989,1724466643924,-150.0,0.00010823,2]
[335728991,1724466643934,-150.0,0.00010826,2]
[335728993,1724466643944,-440.31936338,0.00010838,2]
[335728995,1724466643954,-1500.0,0.00010841,2]
[335728997,1724466643964,-150.0,0.00010841,2]
[335728999,1724466643974,-150.0,0.00010842,2]
[335729002,1724466643984,-150.0,0.00010844,2]
[335729004,1724466643995,-150.0,0.00010845,2]
[335729007,1724466644005,-150.0,0.00010849,2]
[335729010,1724466644015,-155.5390605,0.00010861,2]
[335729014,1724466644025,-150.0,0.00010862,2]
[335729017,1724466644036,-150.0,0.00010869,2]
[335729020,1724466644046,-150.0,0.00010872,2]
[335729023,1724466644056,-150.0,0.00010873,2]
[335729025,1724466644066,-150.0,0.00010876,2]
[335729027,1724466644077,-63800.20686351,0.0001088,2]
[335729029,1724466644087,-150.0,0.00010881,2]
[335729031,1724466644098,-150.0,0.00010882,2]
[335729033,1724466644108,-150.0,0.00010884,2]
[335729035,1724466644118,-180.42628251,0.00010888,2]
[335729037,1724466644129,-155.57446732,0.00010888,2]
[335729039,1724466644139,-155.27625344,0.00010888,2]
[335729041,1724466644150,-2028.60923,0.0001089,2]
[335729043,1724466644160,-150.0,0.00010897,2]
[335729045,1724466644170,-150.0,0.00010899,2]
[335729048,1724466644180,-150.0,0.00010899,2]
[335729050,1724466644191,-150.0,0.00010899,2]
[335729052,1724466644202,-3025.6105,0.000109,2]
[335729054,1724466644213,-99667.144,0.000109,2]
[335729056,1724466644223,-14921.08567797,0.000109,2]
[335729058,1724466644233,-150.0,0.00010903,2]
[335729060,1724466644243,-150.0,0.00010906,2]
[335729062,1724466644253,-1064.66,0.00010909,2]
[335729064,1724466644264,-1140.524,0.00010909,2]
[335729066,1724466644274,-763.638,0.00010909,2]
[335729068,1724466644284,-557.276,0.00010909,2]
[335729071,1724466644294,-405.544,0.00010909,2]
[335729073,1724466644306,-150.0,0.00010919,2]
[335729075,1724466644316,-150.0,0.00010927,2]
[335729077,1724466644327,-150.0,0.0001094,2]
[335729079,1724466644338,-150.0,0.00010942,2]
[335729081,1724466644352,-150.0,0.00010943,2]
[335729084,1724466644363,-150.0,0.00010944,2]
[335729086,1724466644373,-150.0,0.00010946,2]
[335729088,1724466644383,-155.18786695,0.00010949,2]
[335729090,1724466644394,-150.0,0.00010952,2]
[335729092,1724466644404,-557.36161814,0.00010958,2]
[335729094,1724466644415,-519.69266024,0.00010958,2]
[335729096,1724466644426,-500.0,0.00010958,2]
[335729098,1724466644438,-500.0,0.00010958,2]
[335729101,1724466644448,-533.78277825,0.00010958,2]
[335729103,1724466644458,-531.53262682,0.00010958,2]
[335729105,1724466644468,-526.52918036,0.00010958,2]
[335729107,1724466644478,-536.25846451,0.00010958,2]
[335729109,1724466644489,-238.47,0.00010958,2]
[335729111,1724466644499,-288.44830662,0.00010958,2]
[335729113,1724466644508,-500.0,0.00010958,2]
[335729115,1724466644519,-500.0,0.00010958,2]
[335729117,1724466644529,-500.0,0.00010958,2]
[335729119,1724466644539,-500.0,0.00010958,2]
[335729121,1724466644549,-500.0,0.00010958,2]
[335729124,1724466644559,-557.56,0.00010958,2]
[335729126,1724466644570,-557.56,0.00010958,2]
[335729128,1724466644581,-500.0,0.00010958,2]
[335729130,1724466644591,-500.0,0.00010958,2]
[335729132,1724466644601,-166.29863265,0.00010958,2]
[335729134,1724466644611,-500.0,0.00010958,2]
[335729136,1724466644622,-500.0,0.00010958,2]
[335729138,1724466644632,-500.0,0.00010958,2]
[335729140,1724466644642,-500.0,0.00010958,2]
[335729142,1724466644653,-500.0,0.00010958,2]
[335729144,1724466644664,-513.72265163,0.00010958,2]
[335729147,1724466644675,-500.0,0.00010958,2]
[335729149,1724466644685,-500.0,0.00010958,2]
[335729151,1724466644695,-500.0,0.00010958,2]
[335729153,1724466644706,-500.0,0.00010958,2]
[335729155,1724466644717,-4016.08,0.00010958,2]
[335729157,1724466644727,-4016.08,0.00010958,2]
[335729159,1724466644737,-500.0,0.00010958,2]
[335729162,1724466644748,-500.0,0.00010958,2]
[335729164,1724466644760,-500.0,0.00010958,2]
[335729166,1724466644771,-500.0,0.00010958,2]
[335729168,1724466644781,-500.0,0.00010958,2]
[335729170,1724466644792,-500.0,0.00010958,2]
[335729172,1724466644803,-500.0,0.00010958,2]
[335729174,1724466644813,-500.0,0.00010958,2]
[335729176,1724466644824,-356.30706501,0.00010958,2]
[335729178,1724466644834,-306.58999982,0.00010958,2]
[335729180,1724466644844,-644.47321021,0.00010958,2]
[335729182,1724466644855,-300.25397175,0.00010958,2]
[335729184,1724466644864,-500.0,0.00010958,2]
[335729207,1724466645065,-500.0,0.00010958,2]
[335729210,1724466645080,-555.1181518,0.00010958,2]
[335729211,1724466645090,-566.40312254,0.00010958,2]
[335729213,1724466645099,-528.89861002,0.00010958,2]
[335729215,1724466645108,-562.38339276,0.00010958,2]
[335729217,1724466645117,-547.90480185,0.00010958,2]
[335729219,1724466645127,-500.0,0.00010958,2]
[335729222,1724466645136,-521.27770958,0.00010958,2]
[335729224,1724466645146,-500.0,0.00010958,2]
[335729226,1724466645155,-533.55885351,0.00010958,2]
[335729228,1724466645166,-500.0,0.00010958,2]
[335729229,1724466645176,-542.83360731,0.00010958,2]
[335729232,1724466645186,-554.42887494,0.00010958,2]
[335729234,1724466645197,-159.94,0.00010959,2]
[335729236,1724466645208,-1500.0,0.00010967,2]
[335729238,1724466645217,-150.0,0.00010973,2]
[335729240,1724466645226,-150.0,0.00010973,2]
[335729242,1724466645235,-1500.0,0.00010976,2]
[335729244,1724466645244,-150.0,0.00010976,2]
[335729246,1724466645254,-150.0,0.00010976,2]
[335729248,1724466645263,-178.11748156,0.00010977,2]
[335729250,1724466645273,-150.0,0.00010979,2]
[335729252,1724466645288,-150.0,0.00010979,2]
[335729254,1724466645299,-150.0,0.00010981,2]
[335729257,1724466645310,-150.0,0.00010985,2]
[335729259,1724466645320,-191.36,0.00010986,2]
[335729261,1724466645330,-150.0,0.00010987,2]
[335729263,1724466645341,-150.0,0.00010989,2]
[335729265,1724466645353,-155.0,0.00010989,2]
[335729267,1724466645363,-150.0,0.00010992,2]
[335729269,1724466645374,-150.0,0.00010992,2]
[335729271,1724466645383,-1000.0,0.00010993,2]
[335729273,1724466645392,-502.7378618,0.00010995,2]
[335729275,1724466645402,-504.76705046,0.00010995,2]
[335729277,1724466645412,-500.0,0.00010995,2]
[335729279,1724466645424,-518.55683696,0.00010995,2]
[335729281,1724466645434,-524.82876793,0.00010995,2]
[335729283,1724466645443,-531.06724931,0.00010995,2]
[335729285,1724466645452,-520.36712237,0.00010995,2]
[335729287,1724466645461,-537.63958469,0.00010995,2]
[335729289,1724466645471,-528.41134581,0.00010995,2]
[335729291,1724466645481,-517.09693306,0.00010995,2]
[335729293,1724466645491,-506.38308315,0.00010995,2]
[335729295,1724466645500,-937.79,0.00010995,2]
[335729297,1724466645511,-500.0,0.00010995,2]
[335729299,1724466645520,-692.34,0.00010995,2]
[335729301,1724466645529,-500.0,0.00010995,2]
[335729303,1724466645539,-512.2008836,0.00010995,2]
[335729305,1724466645550,-150.0,0.00010995,2]
[335729307,1724466645561,-150.0,0.00010995,2]
[335729309,1724466645570,-548.93222618,0.00010995,2]
[335729311,1724466645581,-507.46014127,0.00010995,2]
[335729313,1724466645590,-500.0,0.00010995,2]
[335729314,1724466645601,-306.24810454,0.00010997,2]
[335729315,1724466645610,-557.56,0.00010998,2]
[335729316,1724466645620,-500.0,0.00010998,2]
[335729317,1724466645630,-4016.08,0.00010998,2]
[335729318,1724466645641,-500.0,0.00010998,2]
[335729319,1724466645651,-500.0,0.00010998,2]
[335729320,1724466645659,-500.0,0.00010998,2]
[335729321,1724466645669,-500.0,0.00010998,2]
[335729322,1724466645679,-500.0,0.00010998,2]
[335729323,1724466645689,-4281.03784596,0.00010999,2]
[335729324,1724466645698,-176.84948489,0.00010999,2]
[335729325,1724466645708,-937.79,0.00010999,2]
[335729326,1724466645717,-937.79,0.00010999,2]
[335729327,1724466645727,-937.79,0.00010999,2]
[335729328,1724466645737,-937.79,0.00010999,2]
[335729329,1724466645746,-937.79,0.00010999,2]
[335729331,1724466645756,-937.79,0.00010999,2]
[335729333,1724466645765,-937.79,0.00010999,2]
[335729335,1724466645775,-937.79,0.00010999,2]
[335729337,1724466645785,-937.79,0.00010999,2]
[335729339,1724466645795,-937.79,0.00010999,2]
[335729341,1724466645805,-937.79,0.00010999,2]
[335729343,1724466645815,-937.79,0.00010999,2]
[335729344,1724466645824,-937.79,0.00010999,2]
[335729347,1724466645833,-937.79,0.00010999,2]
[335729348,1724466645842,-937.79,0.00010999,2]
[335729350,1724466645852,-937.79,0.00010999,2]
[335729352,1724466645862,-937.79,0.00010999,2]
[335729354,1724466645871,-937.79,0.00010999,2]
[335729356,1724466645880,-937.79,0.00010999,2]
[335729358,1724466645889,-937.79,0.00010999,2]
[335729360,1724466645899,-937.79,0.00010999,2]
[335729362,1724466645908,-937.79,0.00010999,2]
[335729364,1724466645917,-937.84283677,0.00010999,2]
[335729366,1724466645926,-512.57582597,0.00010999,2]
[335729368,1724466645936,-692.34,0.00010999,2]
[335729370,1724466645945,-692.34,0.00010999,2]
[335729372,1724466645955,-692.34,0.00010999,2]
[335729374,1724466645964,-692.34,0.00010999,2]
[335729376,1724466645974,-692.34,0.00010999,2]
[335729378,1724466645983,-692.34,0.00010999,2]
[335729380,1724466645992,-692.34,0.00010999,2]
[335729382,1724466646002,-692.34,0.00010999,2]
[335729384,1724466646011,-692.34,0.00010999,2]
[335729386,1724466646020,-692.34,0.00010999,2]
[335729388,1724466646030,-692.34,0.00010999,2]
[335729390,1724466646039,-692.34,0.00010999,2]
[335729392,1724466646049,-692.34,0.00010999,2]
[335729394,1724466646058,-692.34,0.00010999,2]
[335729396,1724466646068,-692.34,0.00010999,2]
[335729397,1724466646078,-692.34,0.00010999,2]
[335729399,1724466646087,-692.34,0.00010999,2]
[335729401,1724466646096,-692.34,0.00010999,2]
[335729403,1724466646105,-692.34,0.00010999,2]
[335729405,1724466646115,-692.34,0.00010999,2]
[335729407,1724466646124,-692.34,0.00010999,2]
[335729409,1724466646134,-692.34,0.00010999,2]
[335729411,1724466646144,-500.0,0.00010999,2]
[335729413,1724466646154,-692.47437361,0.00010999,2]
[335729415,1724466646163,-500.0,0.00010999,2]
[335729417,1724466646173,-500.0,0.00010999,2]
[335729419,1724466646183,-153.41613775,0.00010999,2]
[335729421,1724466646192,-500.0,0.00010999,2]
[335729423,1724466646202,-463.14285568,0.00010999,2]
[335729425,1724466646212,-500.0,0.00010999,2]
[335729427,1724466646221,-500.0,0.00010999,2]
[335729429,1724466646231,-500.0,0.00010999,2]
[335729431,1724466646241,-500.0,0.00010999,2]
[335729433,1724466646251,-500.0,0.00010999,2]
[335729435,1724466646260,-500.0,0.00010999,2]
[335729437,1724466646270,-500.0,0.00010999,2]
[335729439,1724466646280,-500.0,0.00010999,2]
[335729441,1724466646289,-557.56,0.00010999,2]
[335729443,1724466646298,-518.13453789,0.00010999,2]
[335729445,1724466646309,-557.56,0.00010999,2]
[335729447,1724466646318,-557.56,0.00010999,2]
[335729448,1724466646336,-557.56,0.00010999,2]
[335729451,1724466646350,-557.56,0.00010999,2]
[335729452,1724466646359,-557.56,0.00010999,2]
[335729454,1724466646369,-557.56,0.00010999,2]
[335729457,1724466646378,-557.56,0.00010999,2]
[335729460,1724466646387,-557.56,0.00010999,2]
[335729463,1724466646397,-557.56,0.00010999,2]
[335729466,1724466646406,-557.56,0.00010999,2]
[335729469,1724466646415,-557.56,0.00010999,2]
[335729471,1724466646427,-557.56,0.00010999,2]
[335729473,1724466646436,-557.56,0.00010999,2]
[335729475,1724466646445,-557.56,0.00010999,2]
[335729477,1724466646455,-557.56,0.00010999,2]
[335729479,1724466646464,-557.56,0.00010999,2]
[335729481,1724466646474,-557.56,0.00010999,2]
[335729483,1724466646483,-557.56,0.00010999,2]
[335729485,1724466646491,-557.56,0.00010999,2]
[335729487,1724466646500,-557.64883616,0.00010999,2]
[335729488,1724466646509,-500.0,0.00010999,2]
[335729491,1724466646519,-500.0,0.00010999,2]
[335729493,1724466646529,-500.0,0.00010999,2]
[335729495,1724466646538,-500.0,0.00010999,2]
[335729497,1724466646547,-500.0,0.00010999,2]
[335729499,1724466646557,-500.0,0.00010999,2]
[335729501,1724466646566,-500.0,0.00010999,2]
[335729503,1724466646578,-588.73270633,0.00010999,2]
[335729504,1724466646589,-500.0,0.00010999,2]
[335729506,1724466646598,-500.0,0.00010999,2]
[335729509,1724466646609,-500.0,0.00010999,2]
[335729511,1724466646620,-503.5108492,0.00010999,2]
[335729513,1724466646630,-500.0,0.00010999,2]
[335729515,1724466646639,-500.0,0.00010999,2]
[335729517,1724466646648,-175.66509947,0.00010999,2]
[335729520,1724466646664,-324.33490053,0.00010999,2]
[335729522,1724466646674,-500.0,0.00010999,2]
[335729524,1724466646685,-500.0,0.00010999,2]
[335729526,1724466646695,-500.0,0.00010999,2]
[335729528,1724466646704,-500.0,0.00010999,2]
[335729530,1724466646714,-500.0,0.00010999,2]
[335729532,1724466646723,-500.0,0.00010999,2]
[335729534,1724466646733,-500.0,0.00010999,2]
[335729536,1724466646743,-500.0,0.00010999,2]
[335729538,1724466646751,-500.0,0.00010999,2]
[335729540,1724466646760,-500.0,0.00010999,2]
[335729542,1724466646769,-500.0,0.00010999,2]
[335729544,1724466646779,-500.0,0.00010999,2]
[335729546,1724466646787,-500.0,0.00010999,2]
[335729548,1724466646796,-500.0,0.00010999,2]
[335729550,1724466646806,-500.0,0.00010999,2]
[335729552,1724466646815,-500.0,0.00010999,2]
[335729554,1724466646824,-4016.08,0.00010999,2]
[335729556,1724466646841,-4016.08,0.00010999,2]
[335729558,1724466646850,-4016.08,0.00010999,2]
[335729560,1724466646859,-4016.08,0.00010999,2]
[335729561,1724466646868,-4016.08,0.00010999,2]
[335729563,1724466646878,-4016.08,0.00010999,2]
[335729565,1724466646887,-4016.08,0.00010999,2]
[335729567,1724466646896,-4016.08,0.00010999,2]
[335729569,1724466646905,-4016.08,0.00010999,2]
[335729571,1724466646915,-4016.08,0.00010999,2]
[335729573,1724466646923,-4016.08,0.00010999,2]
[335729575,1724466646932,-4016.08,0.00010999,2]
[335729577,1724466646942,-4016.08,0.00010999,2]
[335729579,1724466646951,-4016.08,0.00010999,2]
[335729581,1724466646960,-4016.08,0.00010999,2]
[335729583,1724466646969,-4016.08,0.00010999,2]
[335729585,1724466646979,-4016.08,0.00010999,2]
[335729587,1724466646988,-4016.08,0.00010999,2]
[335729589,1724466646997,-4016.08,0.00010999,2]
[335729591,1724466647006,-4016.08,0.00010999,2]
[335729593,1724466647015,-4016.16012503,0.00010999,2]
[335729595,1724466647024,-500.0,0.00010999,2]
[335729597,1724466647034,-500.0,0.00010999,2]
[335729599,1724466647043,-500.0,0.00010999,2]
[335729601,1724466647052,-500.0,0.00010999,2]
[335729603,1724466647061,-500.0,0.00010999,2]
[335729605,1724466647071,-500.0,0.00010999,2]
[335729607,1724466647081,-539.40326698,0.00010999,2]
[335729609,1724466647093,-500.0,0.00010999,2]
[335729611,1724466647102,-500.0,0.00010999,2]
[335729613,1724466647111,-500.0,0.00010999,2]
[335729615,1724466647120,-500.0,0.00010999,2]
[335729617,1724466647130,-500.0,0.00010999,2]
[335729619,1724466647140,-500.0,0.00010999,2]
[335729621,1724466647150,-500.0,0.00010999,2]
[335729623,1724466647159,-319.98239665,0.00010999,2]
[335729625,1724466647168,-500.0,0.00010999,2]
[335729627,1724466647177,-500.0,0.00010999,2]
[335729629,1724466647188,-500.0,0.00010999,2]
[335729631,1724466647198,-500.0,0.00010999,2]
[335729633,1724466647208,-349.80763521,0.00010999,2]
[335729635,1724466647218,-151.0,0.00010999,2]
[335729637,1724466647228,-151.0,0.00010999,2]
[335729639,1724466647237,-587.14881963,0.00010999,2]
[335729641,1724466647246,-151.516083,0.00010999,2]
[335729642,1724466647255,-151.0,0.00010999,2]
[335729645,1724466647264,-151.516083,0.00010999,2]
[335729647,1724466647275,-151.0,0.00010999,2]
[335729649,1724466647285,-151.0,0.00010999,2]
[335729651,1724466647293,-160.23392987,0.00010999,2]
[335729653,1724466647304,-179.18131444,0.00010999,2]
[335729655,1724466647314,-151.0,0.00010999,2]
[335729657,1724466647324,-151.0,0.00010999,2]
[335729659,1724466647334,-151.0,0.00010999,2]
[335729661,1724466647346,-170.961422,0.00010999,2]
[335729663,1724466647355,-170.961422,0.00010999,2]
[335729665,1724466647364,-151.0,0.00010999,2]
[335729667,1724466647374,-500.0,0.00010999,2]
[335729669,1724466647385,-500.0,0.00010999,2]
[335729671,1724466647395,-160.24655774,0.00010999,2]
[335729673,1724466647406,-151.0,0.00010999,2]
[335729675,1724466647417,-151.0,0.00010999,2]
[335729677,1724466647428,-672.0,0.00010999,2]
[335729679,1724466647438,-402339.0616249,0.00011,2]
[335729682,1724466647459,-883.32723249,0.00011,2]
[335729684,1724466647470,-311.308985,0.00011,2]
[335729693,1724466647546,-64089.25,0.00011,2]
[335729696,1724466647558,-3337.89376783,0.00011,2]
[335729698,1724466647570,-3006.8028,0.00011,2]
[335729701,1724466647585,-321.56691331,0.00011,2]
[335729703,1724466647598,-1675.2,0.00011,2]
[335729705,1724466647611,-14944.50053461,0.00011,2]
[335730616,1724466739601,-150.0,0.0001027,2]
[335730621,1724466881360,422.64,9.816e-05,2]
[335730622,1724466884040,250.0,9.816e-05,2]
[335730623,1724466938113,5107.57,9.814e-05,2]
[335730624,1724466940992,7585.99489144,9.816e-05,2]
[335730625,1724467005200,245.18,9.82e-05,2]
[335730626,1724467028504,659.93,8.219e-05,2]
[335730627,1724467030989,7585.99489144,9.816e-05,2]
[335730628,1724467039996,7585.99489144,9.816e-05,2]
[335730629,1724467055519,178512.0,0.00027,120]
[335730631,1724467108727,444.082411,0.00025,65]
[335730632,1724467114416,444.082411,0.00025,72]
[335730633,1724467114628,400.0,9.816e-05,2]
[335730634,1724467124389,444.082411,0.00025,79]
[335730635,1724467152707,222.082411,0.00025,64]
[335730636,1724467167765,296.082411,0.00025,71]
[335730637,1724467285208,1050.0,0.0001,2]
[335730638,1724467344001,1445.33532012,0.0001,2]
[335730639,1724467429095,500.0,8.22e-05,2]
[335730640,1724467429189,502.22982245,8.22e-05,2]
[335730641,1724467429222,501.80896629,8.22e-05,2]
[335730642,1724467429373,500.0,8.22e-05,2]
[335730643,1724467430036,501.80000012,8.22e-05,2]
[335730644,1724467486175,488.51,9.816e-05,2]
[335730645,1724467523023,444.17091041,9.963e-05,2]
[335730665,1724467588068,155.0,0.00010009,2]
[335730668,1724467621113,63.76958454,9.818e-05,2]
[335730669,1724467621138,153.75599787,9.818e-05,2]
[335730670,1724467621163,5.07441759,9.818e-05,2]
[335730675,1724467628007,150.69664748,9.888e-05,2]
[335730678,1724467654217,680.0,9.819e-05,2]
[335730679,1724467675685,250.0,9.82e-05,2]
[335730680,1724467690102,697.29,8.219e-05,2]
[335730681,1724467721659,2584.3,9.818e-05,2]
[335730687,1724467825561,5000.0,0.00025,60]
[335730688,1724467831693,-300.0,0.00010119,2]
[335730689,1724467831702,-159.1673094,0.0001017,2]
[335730690,1724467831712,-850.0,0.0001027,2]
[335730691,1724467831721,-209.35,0.00010309,2]
[335730692,1724467831730,-697.29,0.00010466,2]
[335730694,1724467831739,-159.1673094,0.000106,2]
[335730695,1724467831748,-300.0,0.00010699,2]
[335730696,1724467831757,-150.0,0.00010699,2]
[335730697,1724467831766,-300.0,0.00010699,2]
[335730698,1724467831775,-300.0,0.00010699,2]
[335730699,1724467831785,-100000.0,0.000107,2]
[335730700,1724467831797,-426.91,0.000107,2]
[335730701,1724467831806,-150.0,0.000107,2]
[335730702,1724467831815,-150.0,0.000107,2]
[335730703,1724467831824,-150.0,0.000107,2]
[335730704,1724467831834,-150.0,0.000107,2]
[335730705,1724467831843,-150.0,0.000107,2]
[335730706,1724467831852,-426.91,0.000107,2]
[335730707,1724467831862,-150.0,0.000107,2]
[335730708,1724467831872,-426.91,0.000107,2]
[335730709,1724467831881,-536.1,0.000107,2]
[335730710,1724467831889,-425.32,0.000107,2]
[335730711,1724467831899,-150.0,0.000107,2]
[335730712,1724467831908,-430.49,0.000107,2]
[335730713,1724467831917,-197.4,0.000107,2]
[335730714,1724467831927,-349.08012023,0.00010713,2]
[335730715,1724467831936,-150.0,0.00010726,2]
[335730716,1724467831945,-499.99,0.00010726,2]
[335730717,1724467831955,-345.01,0.00010726,2]
[335730718,1724467831965,-3268.45,0.00010729,2]
[335730719,1724467831975,-1017.16,0.00010729,2]
[335730720,1724467831984,-150.0,0.00010729,2]
[335730721,1724467831993,-150.0,0.00010731,2]
[335730722,1724467832002,-150.0,0.00010731,2]
[335730723,1724467832011,-150.0,0.00010732,2]
[335730724,1724467832020,-150.0,0.00010735,2]
[335730725,1724467832030,-150.0,0.00010736,2]
[335730726,1724467832038,-150.0,0.00010739,2]
[335730727,1724467832048,-150.0,0.00010744,2]
[335730728,1724467832057,-150.0,0.00010745,2]
[335730729,1724467832066,-150.0,0.00010745,2]
[335730730,1724467832075,-150.0,0.00010746,2]
[335730731,1724467832084,-150.0,0.00010747,2]
[335730732,1724467832093,-150.0,0.0001075,2]
[335730733,1724467832102,-150.0,0.00010751,2]
[335730735,1724467832111,-150.0,0.00010752,2]
[335730737,1724467832121,-150.0,0.00010762,2]
[335730739,1724467832131,-150.0,0.00010766,2]
[335730741,1724467832140,-150.0,0.00010768,2]
[335730743,1724467832149,-150.0,0.00010769,2]
[335730745,1724467832158,-150.0,0.00010769,2]
[335730746,1724467832167,-150.0,0.0001077,2]
[335730747,1724467832176,-150.0,0.0001077,2]
[335730748,1724467832186,-150.0,0.0001077,2]
[335730749,1724467832195,-150.0,0.00010775,2]
[335730750,1724467832204,-150.0,0.00010777,2]
[335730751,1724467832212,-150.0,0.00010778,2]
[335730752,1724467832223,-150.0,0.00010781,2]
[335730753,1724467832232,-150.0,0.00010785,2]
[335730754,1724467832241,-150.0,0.00010787,2]
[335730755,1724467832250,-150.0,0.00010793,2]
[335730756,1724467832259,-150.0,0.00010794,2]
[335730757,1724467832267,-150.0,0.00010798,2]
[335730758,1724467832277,-480.45374498,0.00010799,2]
[335730759,1724467832286,-2146.59833109,0.00010799,2]
[335730760,1724467832296,-2306.5429,0.000108,2]
[335730761,1724467832305,-1914.9503,0.000108,2]
[335730762,1724467832314,-1520.6081822,0.000108,2]
[335730763,1724467832323,-155.94399844,0.000108,2]
[335730764,1724467832332,-426.91,0.000108,2]
[335730765,1724467832341,-531.62,0.000108,2]
[335730766,1724467832350,-150.0,0.000108,2]
[335730767,1724467832359,-150.0,0.000108,2]
[335730768,1724467832368,-150.0,0.000108,2]
[335730769,1724467832377,-150.0,0.000108,2]
[335730770,1724467832386,-150.0,0.000108,2]
[335730771,1724467832395,-426.91,0.000108,2]
[335730772,1724467832404,-531.62,0.000108,2]
[335730773,1724467832413,-426.91,0.000108,2]
[335730774,1724467832422,-150.0,0.000108,2]
[335730775,1724467832431,-150.0,0.000108,2]
[335730776,1724467832440,-531.62,0.000108,2]
[335730777,1724467832449,-150.0,0.000108,2]
[335730778,1724467832458,-150.0,0.000108,2]
[335730779,1724467832467,-205.4,0.000108,2]
[335730780,1724467832478,-426.91,0.000108,2]
[335730781,1724467832487,-531.62,0.000108,2]
[335730782,1724467832496,-150.0,0.000108,2]
[335730783,1724467832505,-713.6,0.000108,2]
[335730784,1724467832514,-150.0,0.000108,2]
[335730785,1724467832523,-12325.47431908,0.000108,2]
[335730786,1724467832532,-150.0,0.00010804,2]
[335730787,1724467832541,-150.0,0.00010806,2]
[335730788,1724467832550,-150.0,0.0001081,2]
[335730789,1724467832559,-150.0,0.0001082,2]
[335730790,1724467832569,-150.0,0.00010825,2]
[335730791,1724467832578,-150.0,0.00010826,2]
[335730792,1724467832589,-150.0,0.00010826,2]
[335730793,1724467832599,-150.0,0.0001083,2]
[335730794,1724467832609,-150.0,0.00010833,2]